bitfinex-derivatives/quotes_BNBF0:USTF0_20250329
["timestamp","ask_amount","ask_price","bid_price","bid_amount"]
[1743235121632,0.30246461,608.49,607.26,0.6]
[1743235122935,0.30246461,608.49,607.27,0.29503204]
[1743235123628,0.30246461,608.53,607.27,0.29503204]
[1743235123928,0.30246461,608.52,607.27,0.29503204]
[1743235124333,0.30246461,608.53,607.27,0.82603204]
[1743235124535,0.30246461,608.52,607.28,0.29503204]
[1743235124733,0.28633374,608.51,607.28,0.29503204]
[1743235124932,0.30246461,608.5,607.28,0.29503204]
[1743235126533,0.30246461,608.52,607.27,0.531]
[1743235126730,0.28633609,608.49,607.27,0.531]
[1743235126938,0.30246461,608.48,607.27,0.531]
[1743235129440,0.30246461,608.48,607.27,1.414]
[1743235129738,0.30246461,608.52,607.27,1.414]
[1743235129941,0.30246461,608.47,607.27,1.414]
[1743235130140,0.28633374,608.47,607.27,1.414]
[1743235130435,0.30246461,608.46,607.27,1.414]
[1743235132641,0.30246461,608.52,607.27,1.414]
[1743235132842,0.2863408,608.45,607.27,1.414]
[1743235133038,0.30246461,608.44,607.27,1.414]
[1743235133242,0.32871488,608.43,607.27,1.414]
[1743235133541,0.30246461,608.42,607.27,1.414]
[1743235133841,0.6311849,608.42,607.27,1.414]
[1743235134042,0.30246461,608.41,607.27,1.414]
[1743235136637,0.28637261,608.4,607.27,1.414]
[1743235136942,0.30246461,608.39,607.27,1.414]
[1743235137443,0.28637261,608.4,607.27,1.414]
[1743235137950,0.28637261,608.4,607.27,2.039]
[1743235138345,0.32872029,608.42,607.27,2.039]
[1743235138845,0.28632549,608.41,607.27,2.039]
[1743235141039,0.30247185,608.4,607.27,2.039]
[1743235141745,0.28635965,608.39,607.27,2.039]
[1743235141945,0.30247185,608.38,607.27,2.039]
[1743235144746,0.30247185,608.37,607.27,2.039]
[1743235145046,0.28636672,608.37,607.27,2.039]
[1743235145239,0.30247185,608.36,607.27,2.039]
[1743235146145,0.30247185,608.36,607.27,2.711]
[1743235147651,0.30247185,608.41,607.27,2.711]
[1743235147853,0.28636908,608.35,607.27,2.711]
[1743235148146,0.30247185,608.34,607.27,2.711]
[1743235148649,0.28636908,608.35,607.27,2.711]
[1743235148850,0.28636908,608.35,607.27,3.565]
[1743235150351,0.32872029,608.42,607.27,3.565]
[1743235151647,0.28628309,608.41,607.27,3.565]
[1743235153452,0.32872029,608.42,607.27,3.565]
[1743235154755,0.2862772,608.41,607.27,3.565]
[1743235156455,0.32872029,608.42,607.27,3.565]
[1743235156955,0.30248777,608.41,607.27,3.565]
[1743235157755,0.28634905,608.4,607.27,3.565]
[1743235158050,0.30248777,608.39,607.27,3.565]
[1743235159653,0.30248777,608.41,607.27,3.565]
[1743235159854,0.30248777,608.4,607.27,3.565]
[1743235160155,0.30248777,608.39,607.27,3.565]
[1743235160355,0.30248777,608.41,607.27,3.565]
[1743235160552,0.30248777,608.4,607.27,3.565]
[1743235160752,0.28634905,608.38,607.27,3.565]
[1743235160957,0.30248777,608.37,607.27,3.565]
[1743235162656,0.30248777,608.41,607.27,3.565]
[1743235162853,0.30248777,608.4,607.27,3.565]
[1743235163054,0.30248777,608.39,607.27,3.565]
[1743235163255,0.30248777,608.41,607.27,3.565]
[1743235163454,0.30248777,608.4,607.27,3.565]
[1743235163657,0.58883682,608.4,607.27,3.565]
[1743235163863,0.30248777,608.39,607.27,3.565]
[1743235165667,0.30248777,608.38,607.27,3.565]
[1743235165866,0.28635141,608.38,607.27,3.565]
[1743235166062,0.30248777,608.37,607.28,0.29573266]
[1743235166666,0.30248777,608.37,607.27,1.508]
[1743235166867,0.30248777,608.37,607.29,0.29576622]
[1743235167163,0.28635141,608.38,607.27,1.508]
[1743235167368,0.32872029,608.42,607.27,1.508]
[1743235168774,0.32872029,608.42,607.27,3.008]
[1743235170275,0.32872029,608.42,607.27,3.889]
[1743235173777,0.30250808,608.41,607.27,3.889]
[1743235176779,0.30250808,608.41,607.28,0.29579267]
[1743235178079,0.30250808,608.41,607.27,3.889]
[1743235178476,0.30250808,608.41,607.27,3.006]
[1743235179279,0.32872029,608.42,607.27,3.006]
[1743235181579,0.30245915,608.41,607.27,3.006]
[1743235182577,0.32872029,608.42,607.27,3.006]
[1743235182982,0.30245815,608.41,607.27,3.006]
[1743235183383,0.32872029,608.42,607.27,3.006]
[1743235183884,0.30245943,608.41,607.27,3.006]
[1743235189587,0.30245943,608.41,607.27,3.705]
[1743235200192,0.32872029,608.42,607.27,3.705]
[1743235205597,0.30245559,608.41,607.27,3.705]
[1743235208504,0.30245559,608.41,607.28,0.29619173]
[1743235208703,0.30245559,608.41,607.27,3.705]
[1743235208999,0.30245559,608.41,607.27,0.699]
[1743235209198,0.30245559,608.41,607.28,0.29610962]
[1743235210005,0.30245559,608.41,607.27,0.699]
[1743235210201,0.30245559,608.41,607.29,0.29597453]
[1743235210403,0.30245559,608.41,607.3,0.29597453]
[1743235210698,0.30245559,608.41,607.31,0.29597453]
[1743235210902,0.30245559,608.41,607.28,0.29597453]
[1743235211105,0.32872029,608.42,607.29,0.29597453]
[1743235211301,0.32872029,608.42,607.28,0.29597453]
[1743235211499,0.32872029,608.42,607.29,2.30430648]
[1743235211805,0.32872029,608.42,607.3,0.29597453]
[1743235212202,0.32872029,608.42,607.29,2.00833195]
[1743235212408,0.32872029,608.42,607.3,0.834]
[1743235212602,0.32872029,608.42,607.31,0.3293211]
[1743235216308,0.30243823,608.41,607.31,0.3293211]
[1743235226810,0.63116392,608.41,607.31,0.3293211]
[1743235227015,0.63116932,608.4,607.31,0.3293211]
[1743235227214,0.30243823,608.39,607.31,0.3293211]
[1743235229217,0.63118013,608.38,607.31,0.3293211]
[1743235229418,0.63118553,608.37,607.31,0.3293211]
[1743235229719,0.30243823,608.36,607.31,0.3293211]
[1743235230512,0.32875811,608.35,607.31,0.3293211]
[1743235230717,0.30243823,608.34,607.31,0.3293211]
[1743235230913,0.32876892,608.33,607.31,0.3293211]
[1743235231221,0.30243823,608.32,607.31,0.3293211]
[1743235242630,0.30243823,608.32,607.29,0.736]
[1743235243330,0.32877973,608.31,607.29,0.736]
[1743235243531,0.30243823,608.3,607.29,0.736]
[1743235243726,0.32879054,608.29,607.29,0.736]
[1743235243933,0.30243823,608.28,607.29,0.736]
[1743235244133,0.32880135,608.27,607.29,0.736]
[1743235244332,0.30243823,608.26,607.29,0.736]
[1743235244533,0.63124499,608.26,607.29,0.736]
[1743235244726,0.30243823,608.25,607.29,0.736]
[1743235247535,0.30243823,608.25,607.15,0.713]
[1743235257042,0.32881757,608.24,607.15,0.713]
[1743235257242,0.30243823,608.23,607.15,0.713]
[1743235257440,0.32882838,608.22,607.15,0.713]
[1743235257639,0.30243823,608.21,607.15,0.713]
[1743235259140,0.32883919,608.2,607.15,0.713]
[1743235259346,0.30243823,608.19,607.15,0.713]
[1743235259547,0.32885001,608.18,607.15,0.713]
[1743235259747,0.30243823,608.17,607.15,0.713]
[1743235260047,0.32886082,608.16,607.15,0.713]
[1743235260247,0.30243823,608.15,607.15,0.713]
[1743235260442,0.32887164,608.14,607.15,0.713]
[1743235260644,0.30243823,608.13,607.15,0.713]
[1743235261043,0.32888245,608.12,607.15,0.713]
[1743235261346,0.30243823,608.11,607.15,0.713]
[1743235267648,2.51754035,608.53,607.15,0.713]
[1743235267850,0.63118525,608.52,607.16,0.32940246]
[1743235268050,0.30251898,608.51,607.16,0.32940246]
[1743235269050,0.32867707,608.5,607.16,0.32940246]
[1743235269251,0.30251898,608.49,607.16,0.32940246]
[1743235269551,0.32868787,608.48,607.16,0.32940246]
[1743235269850,0.30251898,608.47,607.16,0.32940246]
[1743235270050,0.63121225,608.47,607.16,0.32940246]
[1743235270249,0.30251898,608.46,607.16,0.32940246]
[1743235271147,0.30251898,608.46,607.16,1.35140246]
[1743235271547,0.30251898,608.46,607.16,1.91040246]
[1743235273354,0.30251898,608.46,607.16,2.70140246]
[1743235273854,0.32870408,608.45,607.16,2.70140246]
[1743235274153,0.30251898,608.44,607.16,2.70140246]
[1743235274354,0.63122846,608.44,607.16,2.70140246]
[1743235274554,0.30251898,608.43,607.16,2.70140246]
[1743235284065,0.63123386,608.43,607.16,2.70140246]
[1743235284260,0.30251898,608.42,607.16,2.70140246]
[1743235285467,0.32872569,608.41,607.16,2.70140246]
[1743235285668,0.30251898,608.4,607.16,2.70140246]
[1743235285966,0.3287365,608.39,607.16,2.70140246]
[1743235286162,0.30251898,608.38,607.16,2.70140246]
[1743235286364,0.3287473,608.37,607.16,2.70140246]
[1743235286562,0.30251898,608.36,607.16,2.70140246]
[1743235286764,0.32875811,608.35,607.16,2.70140246]
[1743235286965,0.30251898,608.34,607.16,2.70140246]
[1743235287162,0.30251898,608.34,607.16,2.69469507]
[1743235287466,0.58896113,608.34,607.16,2.69469507]
[1743235287763,0.30251898,608.33,607.16,2.69469507]
[1743235290669,0.30251898,608.32,607.16,2.69469507]
[1743235290869,0.30251898,608.31,607.16,2.69469507]
[1743235291071,0.30251898,608.3,607.16,2.69469507]
[1743235291265,0.29136644,608.29,607.16,2.69469507]
[1743235291464,0.32875811,608.35,607.16,2.69469507]
[1743235291970,0.28644569,608.34,607.16,2.69469507]
[1743235292272,0.30263621,608.33,607.16,2.69469507]
[1743235292474,0.32877432,608.32,607.16,2.69469507]
[1743235292773,0.30263621,608.31,607.16,2.69469507]
[1743235292971,0.32878513,608.3,607.16,2.69469507]
[1743235293167,0.30263621,608.29,607.16,2.69469507]
[1743235295773,0.28644922,608.28,607.16,2.69469507]
[1743235295979,0.30263621,608.27,607.16,2.69469507]
[1743235297381,0.30263621,608.27,607.17,0.32939703]
[1743235297978,0.30263621,608.29,607.17,0.32939703]
[1743235298179,0.30263621,608.28,607.17,0.32939703]
[1743235298375,0.30263621,608.29,607.17,0.32939703]
[1743235298579,0.30263621,608.27,607.17,1.09439703]
[1743235298779,0.30263621,608.26,607.17,1.09439703]
[1743235299782,0.30263621,608.26,607.18,0.2964691]
[1743235300679,0.30263621,608.26,607.17,1.09439703]
[1743235300680,0.30263621,608.8,607.17,1.09439703]
[1743235300878,0.32851511,608.8,607.18,0.29626993]
[1743235301082,0.30240762,608.79,607.18,0.29626993]
[1743235301288,2.51754035,608.78,607.18,0.29626993]
[1743235301481,0.30240762,608.77,607.18,0.29626993]
[1743235301686,0.30240762,608.77,607.18,0.87126993]
[1743235301889,0.30240762,608.77,607.19,0.29626993]
[1743235302188,0.30240762,608.77,607.2,0.785]
[1743235302391,0.30240762,608.77,607.21,0.29626993]
[1743235302689,0.30240762,608.77,607.22,0.612]
[1743235302988,0.30240762,608.77,607.23,0.29626993]
[1743235303790,0.30240762,608.79,607.25,0.32935364]
[1743235303990,0.28627956,608.76,607.26,0.29626993]
[1743235304190,0.30240762,608.75,607.26,0.29626993]
[1743235305090,0.30240762,608.75,607.25,0.32935364]
[1743235305290,0.30240762,608.75,607.26,0.29621679]
[1743235306890,0.30240762,608.75,607.28,0.32933737]
[1743235307090,0.30240762,608.75,607.29,0.29621679]
[1743235307284,0.30240762,608.75,607.28,0.32933737]
[1743235307689,0.30240762,608.75,607.29,0.29627874]
[1743235307992,0.30240762,608.75,607.28,0.32933737]
[1743235308291,0.30240762,608.75,607.29,0.2963088]
[1743235308591,0.30240762,608.75,607.31,0.3293211]
[1743235309889,0.28626307,608.74,607.31,0.3293211]
[1743235310288,0.30240762,608.73,607.31,0.3293211]
[1743235310489,0.30240762,608.73,607.32,0.29631172]
[1743235310693,0.30240762,608.73,607.34,0.32930483]
[1743235310888,0.30240762,608.73,607.35,0.29631172]
[1743235311094,0.30240762,608.73,607.37,0.32928857]
[1743235311297,0.30240762,608.73,607.38,0.29631172]
[1743235311493,0.30240762,608.73,607.39,0.32927772]
[1743235311798,0.30240762,608.73,607.4,0.29631172]
[1743235311998,0.30240762,608.73,607.41,0.32926688]
[1743235312294,0.30240762,608.73,607.42,0.29631172]
[1743235312495,0.30240762,608.73,607.43,0.32925604]
[1743235312795,0.30240762,608.73,607.44,0.29631172]
[1743235312996,0.30240762,608.73,607.45,0.3292452]
[1743235313192,0.30240762,608.73,607.46,0.29631172]
[1743235313497,0.30240762,608.73,607.47,0.32923436]
[1743235315695,0.30240762,608.79,607.47,0.32923436]
[1743235315892,0.28627956,608.72,607.47,0.32923436]
[1743235316097,0.30240762,608.71,607.47,0.32923436]
[1743235317298,0.30240762,608.71,607.48,0.919]
[1743235317499,0.30240762,608.71,607.49,0.32922352]
[1743235318800,0.30240762,608.71,607.5,0.84]
[1743235321705,0.30240762,608.7,607.5,0.84]
[1743235321995,0.30240762,608.79,607.5,0.84]
[1743235322196,0.30240762,608.78,607.5,0.84]
[1743235322502,0.3285313,608.77,607.5,0.84]
[1743235322696,0.30240762,608.76,607.5,0.84]
[1743235323202,0.30240762,608.76,607.51,0.617]
[1743235323599,0.32854209,608.75,607.51,0.617]
[1743235323800,0.30240762,608.74,607.51,0.617]
[1743235324001,0.32855288,608.73,607.51,0.617]
[1743235324197,0.30240762,608.72,607.51,0.617]
[1743235325799,0.28627956,608.71,607.51,0.617]
[1743235326003,0.6309767,608.7,607.51,0.617]
[1743235326199,0.63098209,608.69,607.51,0.617]
[1743235326503,0.30240762,608.68,607.51,0.617]
[1743235327004,0.32858527,608.67,607.51,0.617]
[1743235327203,0.30240762,608.66,607.51,0.617]
[1743235327403,0.32859607,608.65,607.51,0.617]
[1743235327705,0.30240762,608.64,607.51,0.617]
[1743235327905,0.32860687,608.63,607.51,0.617]
[1743235328105,0.30240762,608.62,607.51,0.617]
[1743235328906,0.28628191,608.61,607.51,0.617]
[1743235329206,0.30240762,608.6,607.51,0.617]
[1743235330006,0.28628191,608.61,607.51,0.617]
[1743235330204,0.30240757,608.6,607.51,0.617]
[1743235330708,0.30240757,608.59,607.51,0.617]
[1743235330909,0.30240757,608.62,607.51,0.617]
[1743235332010,0.28628898,608.61,607.52,0.904]
[1743235332811,0.30255949,608.6,607.52,0.904]
[1743235333012,0.30255949,608.59,607.52,0.904]
[1743235333311,0.30255949,608.58,607.52,0.904]
[1743235333611,0.30255949,608.57,607.52,0.904]
[1743235333811,0.5889109,608.57,607.52,0.904]
[1743235334013,2.51754035,608.33,607.52,0.904]
[1743235334206,0.30255949,608.32,607.52,0.904]
[1743235336212,0.30255949,608.45,607.52,0.904]
[1743235336413,0.30255949,608.31,607.52,0.904]
[1743235336614,0.30255949,608.3,607.52,0.904]
[1743235336916,0.30255949,608.29,607.52,0.904]
[1743235337213,0.30255949,608.28,607.52,0.904]
[1743235337414,0.30255949,608.27,607.52,0.904]
[1743235337716,0.30255949,608.26,607.52,0.904]
[1743235339015,0.30255949,608.25,607.52,0.904]
[1743235339209,0.30255949,608.24,607.52,0.904]
[1743235339409,0.30255949,608.23,607.52,0.904]
[1743235339616,0.30255949,608.26,607.52,0.904]
[1743235339810,0.63137165,608.25,607.52,0.904]
[1743235340010,0.63137706,608.24,607.52,0.904]
[1743235340211,0.63138246,608.23,607.52,0.904]
[1743235340410,0.63138787,608.22,607.52,0.904]
[1743235340613,0.30255949,608.21,607.52,0.904]
[1743235340810,0.32883919,608.2,607.52,0.904]
[1743235341013,0.30255949,608.19,607.52,0.904]
[1743235341208,0.32885001,608.18,607.52,0.904]
[1743235341613,0.30255949,608.17,607.52,0.904]
[1743235341814,0.32885001,608.18,607.52,0.904]
[1743235343816,0.28636672,608.17,607.52,0.904]
[1743235344218,0.28636672,608.17,607.52,1.597]
[1743235345518,0.32885001,608.18,607.52,1.597]
[1743235346120,0.32885001,608.18,607.52,2.203]
[1743235346418,0.30260487,608.17,607.52,2.203]
[1743235346917,0.58879614,608.17,607.52,2.203]
[1743235347219,0.30260487,608.16,607.52,2.203]
[1743235347715,0.30260487,608.16,607.52,2.928]
[1743235348814,0.30260487,608.15,607.52,2.928]
[1743235349123,0.30260487,608.17,607.52,2.928]
[1743235349318,0.30260487,608.14,607.52,2.928]
[1743235349519,0.30260487,608.13,607.52,2.322]
[1743235349824,0.286428,608.13,607.52,2.322]
[1743235350023,0.30260487,608.12,607.52,2.322]
[1743235350223,0.286428,608.13,607.52,2.322]
[1743235350425,0.286428,608.13,607.52,1.629]
[1743235350923,0.286428,608.13,607.52,0.904]
[1743235351124,0.30260754,608.12,607.52,0.904]
[1743235351526,0.30260754,608.12,605.69,1.23195724]
[1743235351719,0.30260754,608.17,605.81,0.33013651]
[1743235351920,0.30260754,608.11,605.81,0.33013651]
[1743235352124,0.30260754,608.1,605.82,0.29729941]
[1743235352419,0.30260754,608.09,605.93,0.33007113]
[1743235352624,0.30260754,608.08,605.94,0.29729941]
[1743235352821,0.30260754,608.07,606.04,0.33001122]
[1743235353125,0.30260754,608.07,606.05,0.29729941]
[1743235353323,0.30260754,608.07,606.15,0.32995133]
[1743235353524,0.30260754,608.07,606.16,0.29729941]
[1743235353723,0.30260754,608.07,606.18,0.329935]
[1743235353920,0.30260754,608.07,606.19,0.29729941]
[1743235354123,0.30260754,608.07,606.21,0.32991867]
[1743235354420,0.30260754,608.07,606.22,0.29729941]
[1743235354731,0.30260754,608.07,606.24,0.32990234]
[1743235354920,0.30260754,608.07,606.25,0.29729941]
[1743235355120,0.30260754,608.07,606.27,0.32988602]
[1743235355324,0.30260754,608.07,606.28,0.29729941]
[1743235355521,0.30260754,608.07,606.3,0.3298697]
[1743235355722,0.30260754,608.07,606.31,0.29729941]
[1743235355926,0.30260754,608.07,606.33,0.32985338]
[1743235356125,0.30260754,608.07,606.34,0.29729941]
[1743235356322,0.30260754,608.07,606.36,0.32983706]
[1743235356526,0.30260754,608.07,606.37,0.29729941]
[1743235356727,0.30260754,608.07,606.39,0.32982074]
[1743235356927,0.30260754,608.07,606.4,0.29729941]
[1743235357128,0.30260754,608.07,606.42,0.32980442]
[1743235357433,0.30260754,608.07,606.43,0.29729941]
[1743235357629,0.30260754,608.07,606.45,0.32978811]
[1743235357830,0.28658604,608.06,606.46,0.29729941]
[1743235358029,0.30260754,608.05,606.46,0.29729941]
[1743235358430,0.30260754,608.05,606.48,0.32977179]
[1743235358630,0.30260754,608.05,606.49,0.29729941]
[1743235358830,0.30260754,608.05,606.51,0.32975548]
[1743235359030,0.30260754,608.05,606.52,0.29729941]
[1743235359227,0.30260754,608.05,606.54,0.32973917]
[1743235359531,0.30260754,608.05,606.55,0.29729941]
[1743235359731,0.30260754,608.05,606.57,0.32972286]
[1743235359932,0.30260754,608.05,606.58,0.29729941]
[1743235360133,0.30260754,608.05,606.6,0.32970656]
[1743235360428,0.30260754,608.05,606.61,0.29729941]
[1743235360632,0.30260754,608.05,606.63,0.32969025]
[1743235360928,0.28656716,608.04,606.64,0.29729941]
[1743235361133,0.28656716,608.04,606.66,0.32967395]
[1743235361332,0.30260754,608.03,606.67,0.29729941]
[1743235361734,0.30260754,608.03,606.69,0.32965765]
[1743235361930,0.30260754,608.03,606.7,0.29729941]
[1743235362130,0.30260754,608.03,606.72,0.32964135]
[1743235362335,0.30260754,608.03,606.73,0.29729941]
[1743235362530,0.30260754,608.03,606.75,0.32962505]
[1743235362731,0.30260754,608.03,606.76,0.29729941]
[1743235363035,0.30260754,608.03,606.77,0.32961418]
[1743235363334,0.30260754,608.03,606.78,0.29729941]
[1743235363531,0.30260754,608.03,606.79,0.32960332]
[1743235363735,0.30260754,608.03,606.8,0.29729941]
[1743235363934,0.30260754,608.17,606.8,0.29729941]
[1743235364233,0.30260754,608.16,606.8,0.29729941]
[1743235364434,0.30260754,608.15,606.8,0.29729941]
[1743235364631,0.30260754,608.17,606.79,0.32960332]
[1743235364830,0.28655183,608.14,606.79,0.32960332]
[1743235365234,0.30260754,608.13,606.8,0.29746033]
[1743235366737,0.30260754,608.17,606.8,0.29746033]
[1743235366935,0.30260754,608.16,606.8,0.29746033]
[1743235367137,0.30260754,608.17,606.8,0.29746033]
[1743235367637,0.30260754,608.17,606.81,0.32959245]
[1743235367837,0.28653059,608.16,606.82,0.29746033]
[1743235368037,0.30260754,608.15,606.82,0.29746033]
[1743235368242,0.30260754,608.15,606.83,0.32958159]
[1743235368538,0.30260754,608.15,606.84,0.29746033]
[1743235368938,0.30260754,608.15,606.85,0.32957073]
[1743235370138,0.30260754,608.15,606.86,0.29744082]
[1743235370844,0.30260754,608.15,606.87,0.32955987]
[1743235372840,0.28655537,608.14,606.87,0.32955987]
[1743235373047,0.58916291,608.14,606.87,0.32955987]
[1743235373246,0.30260754,608.13,606.87,0.32955987]
[1743235374445,0.30260754,608.13,606.88,1.1944399]
[1743235374640,0.30260754,608.13,606.89,0.62698891]
[1743235375038,0.30260754,608.13,606.9,0.62698348]
[1743235375245,0.30260754,608.13,606.91,0.62697805]
[1743235375439,0.30260754,608.13,606.92,0.62697262]
[1743235375644,0.30260754,608.13,606.93,0.2974399]
[1743235375844,0.30260754,608.12,606.93,0.2974399]
[1743235376040,0.30260754,608.17,606.93,0.2974399]
[1743235376239,0.30260754,608.16,606.93,0.2974399]
[1743235376440,0.30260754,608.17,606.93,0.2974399]
[1743235376641,0.30260754,608.17,606.92,0.32953272]
[1743235376847,0.28651526,608.15,606.92,0.32953272]
[1743235377045,2.51754035,608.11,606.92,0.32953272]
[1743235377246,0.30260754,608.1,606.92,0.32953272]
[1743235379041,0.28652823,608.09,606.92,0.32953272]
[1743235379246,0.30260754,608.08,606.92,0.32953272]
[1743235381546,0.30260754,608.08,606.92,1.19553272]
[1743235385260,0.30260754,608.08,606.92,2.12553272]
[1743235387955,0.30260754,608.07,606.92,2.12553272]
[1743235388160,0.30260754,608.17,606.92,2.12553272]
[1743235388361,0.30260754,608.16,606.92,2.12553272]
[1743235388656,0.30260754,608.15,606.92,2.12553272]
[1743235388861,0.30260754,608.14,606.92,2.12553272]
[1743235389963,2.51754035,608.12,606.92,2.12553272]
[1743235390162,0.30260754,608.11,606.92,2.12553272]
[1743235391365,2.82014789,608.11,606.92,2.12553272]
[1743235391563,0.30260754,608.1,606.92,2.12553272]
[1743235392360,0.32889868,608.09,606.92,2.12553272]
[1743235392663,0.30260754,608.08,606.92,2.12553272]
[1743235392863,0.3289095,608.07,606.92,2.12553272]
[1743235393058,0.30260754,608.06,606.92,2.12553272]
[1743235393261,0.32892031,608.05,606.92,2.12553272]
[1743235393460,0.30260754,608.04,606.92,2.12553272]
[1743235393660,0.32893113,608.03,606.92,2.12553272]
[1743235393859,0.30260754,608.02,606.92,2.12553272]
[1743235394061,0.32894195,608.01,606.92,2.12553272]
[1743235394267,0.30260754,608.0,606.92,2.12553272]
[1743235394569,0.32895277,607.99,606.92,2.12553272]
[1743235394867,0.30260754,607.98,606.92,2.12553272]
[1743235395067,0.3289636,607.97,606.92,2.12553272]
[1743235395367,0.30260754,607.96,606.92,2.12553272]
[1743235395563,0.32897442,607.95,606.92,2.12553272]
[1743235395866,0.30260754,607.94,606.92,2.12553272]
[1743235396768,0.28661319,607.93,606.92,2.12553272]
[1743235397170,0.30260754,607.92,606.92,2.12553272]
[1743235398271,0.28661319,607.93,606.92,2.12553272]
[1743235398972,0.30267561,607.92,606.92,2.12553272]
[1743235399372,0.28661319,607.93,606.92,2.12553272]
[1743235399572,0.32897442,607.95,606.92,2.12553272]
[1743235400775,0.30266359,607.94,606.92,2.12553272]
[1743235400969,0.58914819,607.94,606.92,2.12553272]
[1743235401168,0.2864846,607.94,606.92,2.12553272]
[1743235401372,0.30266182,607.93,606.92,2.12553272]
[1743235403377,0.30266182,607.93,606.93,0.29719597]
[1743235403577,0.30266182,607.93,606.92,2.12553272]
[1743235403773,0.30266182,607.93,606.92,1.25953272]
[1743235404477,0.30266182,607.93,606.92,1.99253272]
[1743235405476,0.30266182,607.93,606.93,0.29700991]
[1743235405678,0.30266182,607.94,606.93,0.29700991]
[1743235405879,0.30266182,607.93,606.93,0.29700991]
[1743235406181,0.30266182,607.92,606.93,0.29700991]
[1743235406371,0.30266182,607.94,606.93,0.29700991]
[1743235406575,0.30266182,607.94,606.93,1.00100991]
[1743235406773,0.28656362,607.93,606.94,0.29700991]
[1743235406978,0.30266182,607.92,606.94,0.29700991]
[1743235407378,0.30266182,607.92,606.95,0.654]
[1743235407577,0.30266182,607.92,606.96,0.29700991]
[1743235407774,0.30266182,607.92,606.95,0.654]
[1743235408180,0.30266182,607.92,606.96,0.692]
[1743235408779,0.30266182,607.94,606.96,0.692]
[1743235408980,0.28656126,607.91,606.96,0.692]
[1743235409282,0.30266182,607.9,606.96,0.692]
[1743235411285,1.45915767,608.14,606.97,6.33977737]
[1743235411480,0.78836176,608.14,607.28,3.12908725]
[1743235411785,0.01160602,608.27,607.28,3.12908725]
[1743235412085,2.51754035,608.69,607.28,3.12908725]
[1743235412480,0.41398226,608.47,607.28,3.12908725]
[1743235412683,0.41398226,608.47,607.29,2.25954708]
[1743235412986,0.41398226,608.47,606.98,3.12908725]
[1743235413185,0.30266333,607.89,606.98,3.12908725]
[1743235413381,0.30266333,607.88,606.98,3.12908725]
[1743235413585,0.30266333,607.87,606.99,1.18866287]
[1743235413780,0.41398226,608.47,606.99,0.886]
[1743235414184,0.41398226,608.47,607.0,3.12908725]
[1743235414380,0.41398226,608.47,607.01,0.30266278]
[1743235414586,0.28646691,608.46,607.0,3.12908725]
[1743235414788,0.28646691,608.46,607.01,0.3026598]
[1743235415186,0.28646691,608.46,607.0,3.12908725]
[1743235415586,0.28646691,608.46,607.01,0.30266295]
[1743235415888,0.28646691,608.46,607.01,3.4317502]
[1743235416087,0.28646691,608.46,607.02,0.30266295]
[1743235417589,2.51754035,608.87,607.03,3.12908725]
[1743235417783,0.28647516,608.45,607.03,3.12908725]
[1743235418289,2.51754035,608.87,607.03,3.12908725]
[1743235418884,2.51754035,608.87,607.04,3.12908725]
[1743235419591,0.28647162,608.86,607.04,3.12908725]
[1743235419789,1.55193855,608.86,607.04,3.12908725]
[1743235420192,4.48656756,608.86,607.04,3.12908725]
[1743235420391,1.26546693,608.85,607.04,3.12908725]
[1743235420786,0.28649285,608.84,606.99,0.886]
[1743235421892,0.28649285,608.84,607.0,0.79]
[1743235422187,3.8829739,608.84,607.0,0.79]
[1743235422390,3.59648105,608.83,607.0,0.79]
[1743235422591,3.59648105,608.82,607.0,0.79]
[1743235422997,2.93462901,608.81,607.0,0.79]
[1743235423197,4.20009594,608.81,607.0,0.79]
[1743235423394,3.59648105,608.8,607.0,0.79]
[1743235423594,1.26546693,608.8,607.0,0.79]
[1743235425205,1.26546693,608.8,607.01,0.592]
[1743235425701,6.53111006,608.81,607.01,0.592]
[1743235425902,4.25555933,608.8,607.01,0.592]
[1743235426201,4.25555933,608.79,607.01,0.592]
[1743235426400,7.84919865,608.78,607.01,0.592]
[1743235426601,4.25555933,608.77,607.01,0.592]
[1743235426797,3.59363932,608.76,607.01,0.592]
[1743235426997,3.59648105,608.75,607.01,0.592]
[1743235427902,2.93462901,608.74,607.01,0.592]
[1743235428102,6.53111006,608.74,607.01,0.592]
[1743235428302,3.59648105,608.73,607.01,0.592]
[1743235428598,2.93462901,608.72,607.01,0.592]
[1743235429103,1.26546693,608.71,607.01,0.592]